[Event "DFMM-LV 2023"]
[Site "Braunfels"]
[Date "2023.06.09"]
[Round "3.9"]
[White "Roessler, Ulrike"]
[Black "Koehler, Inken"]
[Result "0-1"]
[Annotator "TA"]
[ECO "B84"]
[WhiteElo "2176"]
[BlackElo "2008"]
[PlyCount "56"]
[EventDate "2023.06.09"]
[EventType "team-tourn"]
[EventCountry "GER"]
[SourceTitle "playchess.com"]
[Source "ChessBase"]
[SourceQuality "1"]
[TimeControl "40/5400+30:1800+30"]

{[%evp 17,56,20,15,-23,-10,-22,-16,-23,33,-16,0,-2,0,0,-14,-153,-181,-170,-162,-174,-183,-238,-235,-231,-232,-241,-238,-268,-258,-541,-539,-518,-514,-589,-560,-700,-693,-6894,-6579,-6511,-4231]} 1. e4 {[%emt 0:00:03]} c5 {[%emt 0:00:05]} 2. Nf3 {[%emt 0:00:04]} e6 {[%emt 0:00:04]} 3. d4 {[%emt 0:00:03]} cxd4 {[%emt 0:00:04]} 4. Nxd4 {[%emt 0:00:05]} a6 {[%emt 0:00:05]} 5. Nc3 {[%emt 0:00:08]} Qc7 {[%emt 0:00:05]} 6. Be2 {[%emt 0:04:10]} Nf6 {[%emt 0:00:34]} 7. O-O {[%emt 0:00:25]} Be7 {[%emt 0:00:22]} 8. f4 {[%emt 0:02:35]} d6 {[%emt 0:00:36]} 9. Be3 {[%emt 0:00:50]} Nbd7 {[%emt 0:03:07]} 10. Qe1 {[%emt 0:04:43] B84: Sicilian Scheveningen: 6 Be2 a6, lines without early Be3.} b5 $1 {[%emt 0:05:20]} 11. a3 {[%emt 0:00:14]} Bb7 {[%emt 0:00:33]} 12. Bf3 {[%emt 0:00:06] The position is equal.} (12. Qg3 {is interesting.} O-O 13. f5 e5 14. Bh6) 12... Nc5 {[%emt 0:05:27]} (12... Nb6 $11) 13. Bf2 {[%emt 0:08:29]} (13. e5 $14 dxe5 14. fxe5 Qxe5 15. Nc6) 13... O-O $11 {[%emt 0:04:15]} 14. Rd1 {[%emt 0:02:04]} Rad8 {[%emt 0:05:14] [#]} 15. b4 $146 {[%emt 0:09:36] Strongly threatening e5.} ({Predecessor:} 15. Bh4 Rfe8 16. Kh1 Nfd7 17. Bxe7 Rxe7 18. b4 Na4 19. Nxa4 bxa4 20. Rc1 Nf6 21. c4 {½-½ Onischuk,V (2608)-Vovk,Y (2600) Lvov rapid Cup 2017 (6)}) 15... Ncd7 {[%emt 0:07:37][%cal Bc5d7,Bd7e5,Be5g4][%mdl 32]} 16. e5 {[%emt 0:05:55]} dxe5 $17 {[%emt 0:03:35]} 17. fxe5 {[%emt 0:00:26]} Nxe5 {[%emt 0:01:36]} 18. Bxb7 {[%emt 0:10:16][%cal Of2g3]} Neg4 {[%emt 0:00:08][%csl Gg4][%cal Rc7h2]} 19. Nf3 {[%emt 0:17:23]} (19. Bg3 {might work better.} Qxb7 20. h3) 19... Rxd1 $19 {[%emt 0:07:50]} ({Not} 19... Qxb7 20. Bd4) 20. Nxd1 {[%emt 0:00:08] And now Be4 would win.} Nxf2 {[%emt 0:00:57]} (20... Qxb7 $2 {is the wrong capture.} 21. Bd4) 21. Qxf2 {[%emt 0:02:39]} Qxb7 {[%emt 0:00:09]} 22. Ne5 {[%emt 0:02:33]} Bd6 {[%emt 0:06:02][%cal Be7d6,Bd6h2,Bh2b8][%mdl 32]} 23. Nd3 {[%emt 0:04:18] [#]} (23. Qe2) 23... Bxh2+ $1 {[%emt 0:02:14][%mdl 576] Decoy. Black is clearly winning.} 24. Kh1 {[%emt 0:00:06]} Ne4 {[%emt 0:03:29] Prevents Nc5} 25. Qf3 {[%emt 0:00:19]} Bb8 {[%emt 0:00:36][%cal Ob7c7] ...Qc7! would be deadly.} 26. Re1 {[%emt 0:08:21] [#]} Qc7 $1 {[%emt 0:02:43][%csl Gb8][%cal Rc7h2]} 27. Kg1 {[%emt 0:01:33]} (27. g3 Nxg3+) 27... Qh2+ {[%emt 0:00:14]} 28. Kf1 {[%emt 0:00:08]} Nd2+ {[%emt 0:00:05] Weighted Error Value: White=1.06/Black=0.04 (flawless)} 0-1

[Event "DFMM-LV 2023"]
[Site "Braunfels"]
[Date "2023.06.09"]
[Round "3.10"]
[White "Kopylov, Luba"]
[Black "Korenova, Martina"]
[Result "0-1"]
[Annotator "TA"]
[ECO "E83"]
[WhiteElo "1993"]
[BlackElo "2151"]
[PlyCount "48"]
[EventDate "2023.06.09"]
[EventType "team-tourn"]
[EventCountry "GER"]
[SourceTitle "playchess.com"]
[Source "ChessBase"]
[SourceQuality "1"]
[TimeControl "40/5400+30:1800+30"]

{[%evp 11,48,21,49,-45,-45,-34,-52,-121,-75,-80,-80,-85,-71,-139,-137,-377,-326,-729,-717,-863,-828,-877,-888,-1064,-1010,-1519,-1497,-1873,-1347,-29993,-29992,-29994,-29995,-29995,-29996,-29996,-29997,-29998,-29999]} 1. d4 {[%emt 0:00:07]} Nf6 {[%emt 0:00:14]} 2. c4 {[%emt 0:00:08]} g6 {[%emt 0:00:04]} 3. Nc3 {[%emt 0:00:07]} Bg7 {[%emt 0:00:04]} 4. e4 {[%emt 0:00:08]} O-O {[%emt 0:00:23]} 5. Be3 {[%emt 0:01:31]} d6 {[%emt 0:00:31]} 6. f3 {[%emt 0:00:08]} Nc6 {[%emt 0:00:06]} 7. g4 {[%emt 0:03:30] E83: King's Indian: Sämisch Panno (6...Nc6): Lines without either Nge2 or Qd2.} (7. Qd2 $14) 7... e5 $1 $15 {[%emt 0:01:53] aiming for ...exd4.} 8. d5 {[%emt 0:09:47]} Nd4 {[%emt 0:00:59]} 9. Nce2 {[%emt 0:01:54] [#]} ({Don't go for} 9. Bxd4 $2 exd4 10. Nce2 Nxg4 11. fxg4 Bxg4 $19) (9. h4 $15) 9... c6 $146 {[%emt 0:07:18] Black is more active.} (9... Bxg4 $142 10. fxg4 Nxg4 11. Bxd4 Qh4+ 12. Ng3 exd4) ({Predecessor:} 9... c5 10. dxc6 Nxc6 11. Qd2 Qa5 12. Nc3 Nd4 13. O-O-O Be6 14. Kb1 Rfc8 15. Nd5 Qd8 {½-½ Chernomordov,V-Ryakhovskiy,A (1943) Lipetsk Region-ch op 2008 (8)}) 10. Nxd4 {[%emt 0:05:30]} exd4 {[%emt 0:00:04]} 11. Bxd4 {[%emt 0:00:11]} Re8 {[%emt 0:00:47][%cal Of6e4,Bf8e8,Be8e4,Be4g4][%mdl 32] Hoping for ...Nxe4!} 12. Bxf6 {[%emt 0:41:20]} (12. Bg2 $142) 12... Qxf6 {[%emt 0:01:53]} 13. Rb1 $2 {[%emt 0:00:38] [#] White is weak on the dark squares. Now White is beyond hope.} (13. Qc2 $17 {was necessary.}) 13... Bxg4 $1 $19 {[%emt 0:14:58][%mdl 576] Deflection} 14. fxg4 $2 {[%emt 0:04:28]} (14. Bd3 Qh4+ 15. Kd2) (14. Be2 cxd5) 14... Rxe4+ {[%emt 0:00:14]} ({Weaker is} 14... Qh4+ 15. Kd2 $17) 15. Be2 {[%emt 0:01:44]} Rae8 {[%emt 0:11:00][%csl LRc4,LRg4] White must now prevent ...Qh4+.} 16. h4 {[%emt 0:11:26]} Rxg4 {[%emt 0:03:58]} 17. h5 {[%emt 0:02:07]} Bh6 {[%emt 0:11:37]} 18. hxg6 {[%emt 0:04:00]} hxg6 {[%emt 0:00:22] ...Qf4 would be deadly.} 19. dxc6 {[%emt 0:02:18]} bxc6 {[%emt 0:12:40][%cal Og4g2] ( -> ...Rg2!)} 20. Qa4 {[%emt 0:03:23]} Qf4 {[%emt 0:03:52] Black mates.} 21. Qxc6 {[%emt 0:02:53] [#]} Rxg1+ $1 {[%emt 0:00:45][%mdl 512]} 22. Rxg1 {[%emt 0:00:07]} Qd2+ {[%emt 0:00:03]} 23. Kf2 {[%emt 0:00:24]} Rxe2+ {[%emt 0:00:27]} 24. Kg3 {[%emt 0:00:31]} Qf4+ {[%emt 0:00:13] Beautiful play by Korenova!   Weighted Error Value: White=1.61/Black=0.07 (flawless)} 0-1

[Event "DFMM-LV 2023"]
[Site "Braunfels"]
[Date "2023.06.09"]
[Round "3.11"]
[White "Steinbacher, Claudia"]
[Black "Braeutigam, Katerina"]
[Result "0-1"]
[Annotator "TA"]
[ECO "E14"]
[WhiteElo "2039"]
[BlackElo "1957"]
[PlyCount "54"]
[EventDate "2023.06.09"]
[EventType "team-tourn"]
[EventCountry "GER"]
[SourceTitle "playchess.com"]
[Source "ChessBase"]
[SourceQuality "1"]
[TimeControl "40/5400+30:1800+30"]

{[%evp 11,54,20,43,-14,28,36,47,17,23,22,27,16,25,11,95,56,61,17,38,0,33,-62,61,-8,47,48,68,52,104,73,90,89,108,78,104,97,81,79,146,39,83,8,150,-29998,-29999]} 1. d4 {[%emt 0:00:01]} Nf6 {[%emt 0:00:05]} 2. c4 {[%emt 0:00:03]} e6 {[%emt 0:00:06]} 3. Nf3 {[%emt 0:00:23]} b6 {[%emt 0:00:06]} 4. e3 {[%emt 0:01:04]} Bb7 {[%emt 0:00:11]} 5. Bd3 {[%emt 0:00:08]} Ne4 {[%emt 0:01:33]} 6. O-O {[%emt 0:01:11]} Be7 {[%emt 0:00:50]} 7. Ne1 {[%emt 0:01:59] E14: Queen's Indian: Classical Variation (4 e3).} (7. Nbd2 $14 f5 8. Qc2) 7... f5 {[%emt 0:04:58]} 8. f3 {[%emt 0:00:16]} Nf6 {[%emt 0:01:46]} 9. Nc3 {[%emt 0:00:21] White is slightly better.} O-O {[%emt 0:08:07]} 10. e4 {[%emt 0:05:51][%cal Be3e4,Be4e5][%mdl 32] [#]} Nc6 $146 {[%emt 0:13:27]} ({Predecessor:} 10... fxe4 11. fxe4 d6 12. Nc2 Nbd7 13. Ne3 e5 14. d5 g6 15. Be2 Bc8 16. Qc2 Ne8 {1-0 Golovankov,V (2288)-Saveliev,A (2074) St Petersburg-ch sf 85th 2012 (1.13)}) 11. e5 {[%emt 0:18:31]} Ne8 {[%emt 0:01:59]} 12. Nc2 {[%emt 0:00:04]} f4 {[%emt 0:10:29]} (12... d6 $11) 13. Re1 {[%emt 0:05:24]} d6 {[%emt 0:13:08]} 14. Kh1 {[%emt 0:03:03]} dxe5 {[%emt 0:03:27]} 15. dxe5 {[%emt 0:00:02]} Bh4 {[%emt 0:12:12]} 16. Re4 {[%emt 0:08:54]} (16. Re2 $1 $14) 16... Bg5 {[%emt 0:09:13]} (16... Qg5 $1 $15 17. Qe2 Rd8) 17. Qf1 {[%emt 0:02:51]} (17. Re2 $14) 17... Qe7 {[%emt 0:02:07]} (17... a5 $11) 18. Re2 $14 {[%emt 0:11:27]} Qf7 {[%emt 0:04:58]} 19. Be4 {[%emt 0:01:34]} Rb8 {[%emt 0:01:35]} ({Black should play} 19... Rd8 $14) 20. b3 {[%emt 0:02:11]} Qh5 {[%emt 0:00:53]} 21. Bb2 {[%emt 0:02:39]} Be7 {[%emt 0:00:50]} 22. Bxc6 {[%emt 0:00:44]} Bxc6 {[%emt 0:00:02]} 23. Nd4 {[%emt 0:00:33][%csl LRc6,LRe6]} Bd7 {[%emt 0:01:26]} 24. Rd1 {[%emt 0:00:16][%cal Od4f5]} Bc5 {[%emt 0:05:02] [#]} (24... Rf7 $142) 25. Ndb5 {[%emt 0:02:03]} (25. Nc2 $1 $16 Bc6 26. b4) 25... Bxb5 {[%emt 0:02:11]} 26. Nxb5 {[%emt 0:00:02]} ({Better is} 26. cxb5 $16 {Hoping for Ne4.} Rf5 27. h3 (27. Ne4 $2 {leads to mate.} Qxh2+ {[%mdl 64] Decoy, Clearance} 28. Kxh2 Rh5#)) 26... Rf5 {[%emt 0:01:26]} (26... g5 $1 $11) 27. Red2 $2 {[%emt 0:05:41] [#]} (27. Nxa7 $2 {gets mated.} Qxh2+ 28. Kxh2 Rh5#) (27. Bd4 $16) 27... Qxh2+ $3 {[%emt 0:00:36][%mdl 576] Decoy, Clearance. An entertaining game by Braeutigam.   Weighted Error Value: White=0.60/Black=0.45} 0-1

[Event "DFMM-LV 2023"]
[Site "Braunfels"]
[Date "2023.06.09"]
[Round "3.12"]
[White "Braeutigam, Irina"]
[Black "Just, Anita"]
[Result "1/2-1/2"]
[Annotator "TA"]
[ECO "C00"]
[WhiteElo "2007"]
[BlackElo "1910"]
[PlyCount "104"]
[EventDate "2023.06.09"]
[EventType "team-tourn"]
[EventCountry "GER"]
[SourceTitle "playchess.com"]
[Source "ChessBase"]
[SourceQuality "1"]
[TimeControl "40/5400+30:1800+30"]

{[%evp 18,104,7,-5,48,-6,19,0,24,0,58,10,50,23,50,-13,47,-10,47,44,55,56,103,62,67,40,66,26,51,23,12,22,107,72,72,70,71,56,56,55,52,52,280,50,49,43,77,79,77,54,56,56,56,56,51,51,89,35,34,35,51,32,33,34,48,15,17,0,0,0,71,5,48,48,50,48,48,48,50,50,50,50,85,21,21,0,72,0,30]} 1. e4 {[%emt 0:00:07][%cal Be2e4,Be4e5][%mdl 32]} e6 {[%emt 0:00:09]} 2. d3 {[%emt 0:00:24]} d5 {[%emt 0:00:11]} 3. Nd2 {[%emt 0:00:05]} Nf6 {[%emt 0:00:17]} 4. Ngf3 {[%emt 0:00:42]} b6 {[%emt 0:00:27]} 5. e5 {[%emt 0:17:28]} Nfd7 {[%emt 0:00:37]} 6. g3 {[%emt 0:00:09]} Bb7 {[%emt 0:00:52]} 7. Bg2 {[%emt 0:00:13]} c5 {[%emt 0:00:50]} 8. O-O {[%emt 0:00:39]} Nc6 {[%emt 0:01:27]} 9. Re1 {[%emt 0:00:44]} Qc7 {[%emt 0:07:34]} 10. Qe2 {[%emt 0:00:24]} (10. c4 $5 {[%cal Rc4d5]}) 10... g6 {[%emt 0:00:39] C00: French: Unusual White 2nd moves.} (10... Be7 $11) 11. Nf1 {[%emt 0:01:10]} (11. c4 $14) 11... Bg7 $11 {[%emt 0:01:11][%cal Rd7e5]} 12. Bf4 {[%emt 0:00:49]} O-O {[%emt 0:01:18]} (12... h6 $5 {[%cal Rg6g5]}) 13. c3 {[%emt 0:07:30]} Rac8 {[%emt 0:04:28]} ({Black should play} 13... b5 $11) 14. h4 {[%emt 1:07:06] [#]} (14. d4 $14) 14... h5 $146 {[%emt 0:02:24]} ({Predecessor:} 14... b5 15. N1h2 d4 16. cxd4 cxd4 17. Qd2 Rfd8 18. Ng4 Qa5 19. Qxa5 Nxa5 20. Nxd4 Bxg2 21. Kxg2 {1-0 Morgunov,M (2182)-Rumpl,E (2295) AUT-chT2O 1718 2017 (6.6)}) 15. N1h2 {[%emt 0:00:00]} Ne7 {[%emt 0:05:59][%cal Od5d4]} 16. Bh3 {[%emt 0:00:00]} (16. d4 $14) 16... Qc6 {[%emt 1:10:07]} (16... d4 $1 $11) 17. Rac1 {[%emt 0:01:30]} (17. d4 $14) 17... Rfe8 {[%emt 0:00:00]} (17... d4 $11) 18. d4 $14 {[%emt 0:00:00]} Qa4 {[%emt 0:00:00]} 19. b3 {[%emt 0:00:00]} Qa6 {[%emt 0:00:00]} (19... Qa5 $14) 20. Qd2 $16 {[%emt 0:00:00]} Nf5 {[%emt 0:00:00]} 21. Nf1 {[%emt 0:00:00]} Qa5 {[%emt 0:00:00]} 22. b4 {[%emt 0:00:00]} Qa3 {[%emt 0:00:00]} 23. Ne3 {[%emt 0:00:00]} cxb4 {[%emt 0:00:00]} 24. cxb4 {[%emt 0:00:00]} Bf8 {[%emt 0:00:00]} (24... Nxe3 $11 {keeps the balance.} 25. Rxc8 Rxc8 26. Rxe3 Qc1+ 27. Re1 Qxd2 28. Bxd2 b5) 25. Rb1 {[%emt 0:00:00]} Qc3 {[%emt 0:00:00]} 26. Nxf5 {[%emt 0:00:00]} exf5 {[%emt 0:00:00]} 27. Qxc3 {[%emt 0:00:00]} Rxc3 {[%emt 0:00:00]} 28. Re3 {[%emt 0:00:11]} Rec8 {[%emt 0:06:00]} 29. Bf1 {[%emt 0:01:03]} Rc1 $2 {[%emt 0:00:00] [#]} (29... Be7 $14) 30. Re1 $2 {[%emt 0:00:19]} (30. Rxc1 $1 $18 Rxc1 31. Ra3 Rxf1+ 32. Kxf1) 30... Rxe1 $14 {[%emt 0:00:00]} 31. Nxe1 {[%emt 0:00:10]} Nb8 {[%emt 0:00:00]} 32. b5 {[%emt 0:00:21] Inhibits Nc6.} Nd7 {[%emt 0:00:00]} 33. Rc1 {[%emt 0:00:27] Rxc8 is the strong threat.} Ba3 {[%emt 0:00:00]} 34. Rxc8+ {[%emt 0:00:25]} Bxc8 {[%emt 0:00:00]} 35. Nc2 {[%emt 0:00:30]} Bb2 {[%emt 0:00:00]} 36. Be3 {[%emt 0:00:30] Strongly threatening Bg2.} Bc3 {[%emt 0:00:00]} 37. Bd3 {[%emt 0:00:30]} ({Better is} 37. Bg2 $16) 37... Nf8 {[%emt 0:00:00]} 38. f4 {[%emt 0:00:30]} Bd7 {[%emt 0:00:00]} 39. Kf2 {[%emt 0:06:04]} Ne6 {[%emt 0:00:00]} 40. a4 {[%emt 0:00:00]} Kf8 {[%emt 0:00:00]} 41. Kf3 {[%emt 0:28:17]} Ke7 {[%emt 0:26:02]} 42. Bf2 {[%emt 0:01:05]} Kd8 $1 {[%emt 0:01:44]} 43. Ke3 {[%emt 0:00:20]} Kc7 {[%emt 0:02:17]} (43... Kc8 $1 $11 {remains equal.}) 44. Be1 {[%emt 0:01:10]} ({White should try} 44. Be2 $16) 44... Bxe1 {[%emt 0:00:30]} 45. Nxe1 $11 {[%emt 0:00:04][%mdl 4096] Endgame KBN-KBN} a6 $1 {[%emt 0:01:00]} 46. Nc2 {[%emt 0:01:21] And now Nb4 would win.} axb5 {[%emt 0:00:54]} 47. axb5 {[%emt 0:00:41] Nb4 would be deadly.} Kb7 {[%emt 0:02:59]} 48. Kd2 {[%emt 0:00:00]} Nc7 {[%emt 0:00:00]} 49. Na3 {[%emt 0:00:00]} Ne6 {[%emt 0:00:00] [#]} 50. Ke3 {[%emt 0:00:00]} (50. Kc3 $1 $16) 50... Nc7 {[%emt 0:00:00]} 51. Kd2 {[%emt 0:00:00]} (51. Bf1 $11) 51... Ne6 $16 {[%emt 0:00:00]} 52. Ke3 {[%emt 0:00:00]} Nc7 $1 {[%emt 0:00:00] Weighted Error Value: White=0.31/Black=0.29 (precise)} 1/2-1/2

[Event "DFMM-LV 2023"]
[Site "Braunfels"]
[Date "2023.06.09"]
[Round "3.13"]
[White "Kosovska, Olena"]
[Black "Gressmann, Hanna"]
[Result "0-1"]
[Annotator "TA"]
[ECO "C80"]
[WhiteElo "1894"]
[BlackElo "1933"]
[PlyCount "58"]
[EventDate "2023.06.09"]
[EventType "team-tourn"]
[EventCountry "GER"]
[SourceTitle "playchess.com"]
[Source "ChessBase"]
[SourceQuality "1"]
[TimeControl "40/5400+30:1800+30"]

{[%evp 15,58,20,13,0,14,0,0,0,6,14,14,-51,-46,-29,-22,-24,0,0,0,0,0,0,0,-22,-14,-11,0,-112,-83,-97,-87,-181,-66,-141,-98,-200,-202,-1553,-1529,-29996,-29997,-29997,-29998,-29998,-29999]} 1. e4 {[%emt 0:00:02]} e5 {[%emt 0:00:06]} 2. Nf3 {[%emt 0:00:06]} Nc6 {[%emt 0:00:08]} 3. Bb5 {[%emt 0:00:07]} a6 {[%emt 0:00:09]} 4. Ba4 {[%emt 0:00:04]} Nf6 {[%emt 0:00:05][%cal Bg8f6,Bf6e4,Be4c5,Bc5e6,Be6d4][%mdl 32]} 5. O-O {[%emt 0:00:07]} Nxe4 {[%emt 0:00:25]} 6. Re1 {[%emt 0:04:36]} Nc5 {[%emt 0:00:44]} 7. Bxc6 {[%emt 0:01:03]} dxc6 {[%emt 0:00:15]} 8. Nxe5 {[%emt 0:01:34]} Be7 {[%emt 0:01:48]} 9. Nc3 {[%emt 0:05:04] C80: Open Ruy Lopez: Sidelines and 9 Nbd2.} O-O {[%emt 0:06:08]} 10. h3 {[%emt 0:04:38]} Ne6 {[%emt 0:05:06]} 11. d3 {[%emt 0:01:50] The position is equal.} Nd4 {[%emt 0:11:44] [#]} 12. Ne4 $146 {[%emt 0:03:11]} ({Predecessor:} 12. Be3 Nf5 13. Bf4 Be6 14. Nf3 h6 15. d4 Qc8 16. Qe2 a5 17. Ne4 Rd8 18. c3 {½-½ Dias,I (2154)-Strugnell,C (2255) Lisbon Portugal op 2017 (9)}) 12... Be6 {[%emt 0:08:05]} 13. f4 {[%emt 0:14:56]} (13. c3 $11 Nf5 14. b3) 13... f6 {[%emt 0:10:29]} (13... Bh4 {with more complications.} 14. Rf1 Re8 15. Be3 f6) 14. Nf3 {[%emt 0:01:06]} Nxf3+ {[%emt 0:03:06]} 15. Qxf3 {[%emt 0:00:10]} Bd5 {[%emt 0:01:25] [#] And now ...f5 would win.} (15... f5 {looks sharper.} 16. Ng5 Bd5 17. Qh5 h6) 16. f5 {[%emt 0:05:11]} Re8 {[%emt 0:05:15]} 17. Qg4 {[%emt 0:02:10]} Bxe4 {[%emt 0:12:45]} 18. Rxe4 {[%emt 0:12:16]} Bc5+ {[%emt 0:01:41]} 19. Kh1 {[%emt 0:00:39]} (19. Kf1 $5 {[%cal Re4e8]} Qd5 20. Bh6 $11) 19... Rxe4 {[%emt 0:00:32]} 20. Qxe4 {[%emt 0:05:54]} Qd5 {[%emt 0:00:57]} (20... Qd4 {simplifies} 21. Qxd4 Bxd4 22. Bd2 Re8) 21. Qg4 {[%emt 0:04:51]} (21. Qxd5+ $11 cxd5 22. Bd2) 21... Re8 {[%emt 0:04:32] ...Re1+ would be deadly.} 22. Bh6 {[%emt 0:08:42][%csl Gh6][%cal Rg4g7]} Re7 $40 {[%emt 0:00:58][%mdl 128] Black goes for the king. Active counter play!} 23. a3 {[%emt 0:01:28]} (23. Bd2 $17) 23... b5 {[%emt 0:06:45]} (23... Qe5 $19 {[%cal Oc5d6] aiming for ...Bd6!} 24. Rf1 Qe2 25. Qxe2 Rxe2) 24. Bf4 {[%emt 0:07:10]} ({White should try} 24. Rf1 $15) 24... Qd4 {[%emt 0:01:29]} 25. c3 {[%emt 0:02:27] [#]} (25. Rb1 $17) 25... Qf2 $1 $19 {[%emt 0:01:33] Threatens to win with ...Re1+.} ({Not} 25... Qxd3 26. Rd1 Qe4 27. Kh2 $15) 26. b4 $2 {[%emt 0:12:31]} (26. d4 Qxb2 27. Rf1) 26... Re1+ {[%emt 0:00:28]} 27. Rxe1 {[%emt 0:00:21]} Qxe1+ {[%emt 0:00:06] Black mates.} 28. Kh2 {[%emt 0:00:09]} Bg1+ {[%emt 0:00:07]} 29. Kh1 {[%emt 0:00:12]} Bf2+ {[%emt 0:00:07] Weighted Error Value: White=0.86/Black=0.14 (very precise) .  Loses game:     	---       	---        Missed win:     	---       	---        Mistake:       	White=6     	Black=1      Inaccurate:     	White=1     	Black=1      OK:         	White=3     	Black=3      Best:        	---       	Black=1      Strong:       	---       	Black=1      Brilliant:      	---       	---} 0-1

[Event "DFMM-LV 2023"]
[Site "Braunfels"]
[Date "2023.06.09"]
[Round "3.14"]
[White "Leib, Britta"]
[Black "Lowke, Kathrin"]
[Result "0-1"]
[Annotator "TA"]
[ECO "B25"]
[WhiteElo "1960"]
[BlackElo "1848"]
[PlyCount "100"]
[EventDate "2023.06.09"]
[EventType "team-tourn"]
[EventCountry "GER"]
[SourceTitle "playchess.com"]
[Source "ChessBase"]
[SourceQuality "1"]
[TimeControl "40/5400+30:1800+30"]

{[%evp 14,100,8,0,23,12,32,20,31,39,87,14,70,24,100,1,2,16,10,3,10,-3,15,0,5,20,25,20,16,0,0,0,12,-12,-7,-62,-55,-55,-38,-36,-32,-103,-33,-25,17,-41,0,-43,-33,-35,-37,-468,-39,-40,1016,-570,-546,-548,-565,-528,-545,-632,-682,-631,-597,-589,-543,-554,-584,-627,-604,-714,-667,-697,-681,-818,-812,-981,-713,-889,-879,-805,-585,-553,-562,-1887,-1910,-12836,-12823]} 1. e4 {[%emt 0:00:04]} c5 {[%emt 0:00:06]} 2. Nc3 {[%emt 0:00:04]} g6 {[%emt 0:00:46]} 3. g3 {[%emt 0:01:04]} Bg7 {[%emt 0:00:08]} 4. Bg2 {[%emt 0:00:41]} d6 {[%emt 0:00:44]} 5. d3 {[%emt 0:02:44]} Nf6 {[%emt 0:00:17]} 6. h3 {[%emt 0:04:23]} O-O {[%emt 0:02:19]} 7. Nge2 {[%emt 0:03:48]} Nc6 {[%emt 0:00:56]} 8. O-O {[%emt 0:01:23]} Bd7 {[%emt 0:03:39] B25: Closed Sicilian: 3 g3, lines without early Be3.} 9. f4 {[%emt 0:07:42]} Qc8 {[%emt 0:05:52]} 10. g4 {[%emt 0:07:48][%cal Bg3g4,Bg4g5][%mdl 32]} h5 {[%emt 0:03:00] The position is equal.} 11. g5 {[%emt 0:16:49]} Nh7 {[%emt 0:01:30] [#]} (11... Ne8 $14 {deserves consideration.}) 12. Kh2 {[%emt 0:01:57] [#]} (12. f5 $1 $16) 12... Nd4 $146 {[%emt 0:06:18]} (12... e6 $11) ({Predecessor:} 12... e5 13. Nd5 Be6 14. c3 Bxd5 15. exd5 Ne7 16. Ng3 h4 17. Ne4 Nf5 18. Bf3 f6 {1-0 Alonso Vazquez,R (2030)-Castellano Ostapczuk,L Ortigueira op 2nd 2003 (2)}) 13. Nd5 {[%emt 0:11:31]} ({Better is} 13. f5 $14) 13... Re8 {[%emt 0:01:54]} (13... Qd8 $11 {remains equal.}) 14. Ng1 {[%emt 0:03:35]} (14. f5 $16) 14... e6 $11 {[%emt 0:09:27]} 15. Ne3 {[%emt 0:00:27]} b5 {[%emt 0:18:58]} 16. c3 {[%emt 0:11:52]} Nc6 {[%emt 0:00:42]} 17. Nf3 {[%emt 0:00:51][%cal Of4f5]} b4 {[%emt 0:01:57]} 18. d4 {[%emt 0:10:27]} bxc3 {[%emt 0:02:15]} 19. bxc3 {[%emt 0:00:03]} Rb8 {[%emt 0:02:00]} 20. Nc4 {[%emt 0:01:43]} Qc7 {[%emt 0:02:50]} 21. e5 {[%emt 0:02:01]} dxe5 {[%emt 0:03:01]} 22. dxe5 {[%emt 0:00:51]} Red8 {[%emt 0:02:54]} 23. Qc2 {[%emt 0:01:23]} Ne7 {[%emt 0:01:02]} 24. Nd6 {[%emt 0:01:09]} ({White should try} 24. Nfd2 $11) 24... Nf5 $15 {[%emt 0:03:18]} 25. Ne4 {[%emt 0:00:17]} Bf8 {[%emt 0:05:59]} 26. Re1 $1 {[%emt 0:00:40]} Bc6 {[%emt 0:02:02]} 27. Qf2 {[%emt 0:04:20]} (27. Nfd2 $15) 27... Qb7 {[%emt 0:05:27] Black is more active.} (27... Bxe4 $17 28. Rxe4 Be7) 28. Nfd2 {[%emt 0:01:14]} Rd3 {[%emt 0:08:18]} 29. Nc4 {[%emt 0:00:55]} (29. Rb1 $11 Qc8 30. Rxb8 Qxb8 31. Bf1) 29... Qd7 {[%emt 0:02:07]} 30. Bf1 {[%emt 0:00:49]} Rd1 {[%emt 0:00:29]} 31. Rxd1 {[%emt 0:01:18]} Qxd1 {[%emt 0:00:05]} 32. Be2 $2 {[%emt 0:00:07][%mdl 8192]} (32. Ng3 $15) 32... Qd5 $2 {[%emt 0:00:43]} ({Black should play} 32... Qc2 $19 33. Ncd2 Bxe4 34. Nxe4 Qxe4) 33. Ncd2 {[%emt 0:00:28] [#]} Nxg5 $2 {[%emt 0:02:23][%mdl 8192]} 34. fxg5 $4 {[%emt 0:01:16][%mdl 8192]} (34. Nf6+ $18 {is the narrow road to win.} Kg7 35. Nxd5) 34... Qxe5+ $19 {[%emt 0:00:14] Black is clearly winning.} 35. Kg1 {[%emt 0:01:08]} Bxe4 {[%emt 0:00:22]} 36. Nxe4 {[%emt 0:00:40]} Qxe4 {[%emt 0:00:07]} 37. Bf3 {[%emt 0:00:29]} Qd3 {[%emt 0:00:35]} 38. Bf4 {[%emt 0:00:40]} Rb1+ {[%emt 0:01:27]} 39. Rxb1 {[%emt 0:00:00]} Qxb1+ {[%emt 0:00:05]} 40. Kh2 {[%emt 0:00:35]} Qd3 {[%emt 0:00:38]} 41. Bd2 {[%emt 0:30:36]} Bd6+ {[%emt 0:31:33]} 42. Kg1 {[%emt 0:00:00]} Qb1+ {[%emt 0:00:00]} 43. Qe1 {[%emt 0:00:00]} Qxa2 {[%emt 0:00:00]} 44. Be4 {[%emt 0:00:00]} Ng3 {[%emt 0:00:00] White must now prevent ...Nxe4.} 45. Bg2 {[%emt 0:00:00]} Qc4 {[%emt 0:00:00]} 46. Qe3 {[%emt 0:00:00]} Ne2+ {[%emt 0:00:00]} 47. Kf2 {[%emt 0:00:00]} Nf4 {[%emt 0:00:00] ...Nxg2 is the strong threat.} 48. Bf1 {[%emt 0:00:00]} Qd5 {[%emt 0:00:00] Strongly threatening ...c4.} 49. h4 {[%emt 0:00:00]} c4 {[%emt 0:00:00] ( -> ...Bc5)} 50. Qd4 {[%emt 0:00:00]} Bc5 {[%emt 0:00:00] Weighted Error Value: White=0.62/Black=0.31} 0-1